bitfinex-derivatives/quotes_SOLF0:USTF0_20260213
["timestamp","ask_amount","ask_price","bid_price","bid_amount"]
[1770951074811,11.4175,78.894,78.841,3.89791503]
[1770951075217,3.96666361,78.902,78.853,3.89791503]
[1770951076818,3.96666361,78.902,78.854,11.423]
[1770951078220,3.96666361,78.897,78.853,3.89791503]
[1770951082028,3.96666361,78.915,78.858,3.89791503]
[1770951082227,3.96666361,78.928,78.858,3.89791503]
[1770951082423,3.96666361,78.928,78.861,3.89791503]
[1770951082728,3.96666361,78.941,78.861,3.89791503]
[1770951083321,3.96666361,78.956,78.886,3.89791503]
[1770951083524,8.82437312,78.97,78.901,3.89791503]
[1770951083525,3.96666361,78.97,78.901,3.89791503]
[1770951083833,7.9e-06,78.976,78.9,8.82437312]
[1770951083834,7.9e-06,78.976,78.925,3.89791503]
[1770951084628,7.9e-06,78.976,78.935,3.89791503]
[1770951084824,7.9e-06,78.976,78.886,38.12]
[1770951084825,3.96666361,78.972,78.885,3.89791503]
[1770951085122,3.96666361,78.972,78.891,3.89791503]
[1770951085326,3.96666361,78.972,78.925,3.89791503]
[1770951085722,3.96666361,78.969,78.908,3.89791503]
[1770951085930,3.96666361,78.969,78.918,3.89791503]
[1770951087527,3.96666361,78.969,78.891,3.89791503]
[1770951087927,7.9e-06,78.976,78.891,3.89791503]
[1770951088127,7.9e-06,78.976,78.911,3.89791503]
[1770951088629,7.9e-06,78.976,78.91,8.82437312]
[1770951088630,7.9e-06,78.976,78.931,3.89791503]
[1770951091030,3.87344536,78.971,78.913,4.1251624]
[1770951091531,3.87344536,78.969,78.897,4.1251624]
[1770951091934,3.87344536,78.956,78.897,4.1251624]
[1770951092327,3.87344536,78.956,78.87,8.82437312]
[1770951092328,3.87344536,78.949,78.871,4.1251624]
[1770951092527,3.87344536,78.964,78.896,4.1251624]
[1770951093835,3.87344536,78.964,78.913,3.98528812]
[1770951094730,3.99900573,78.974,78.916,3.98528812]
[1770951095437,3.99900573,78.972,78.918,11.4138]
[1770951096142,3.99900573,78.972,78.918,15.39908812]
[1770951097338,3.99900573,78.964,78.905,11.4157]
[1770951097539,3.99900573,78.964,78.906,3.98528812]
[1770951097837,3.99900573,78.964,78.908,11.4152]
[1770951098040,3.99900573,78.964,78.909,3.98528812]
[1770951099345,7.9e-06,78.976,78.909,3.98528812]
[1770951099535,7.9e-06,78.976,78.874,177.6482]
[1770951099536,7.9e-06,78.976,78.911,3.98528812]
[1770951099844,7.9e-06,78.976,78.933,3.98528812]
[1770951100742,7.9e-06,78.976,78.937,3.98528812]
[1770951102834,7.9e-06,78.976,78.939,3.98528812]
[1770951103345,7.9e-06,78.976,78.954,3.98528812]
[1770951103735,3.99900573,79.039,78.954,3.98528812]
[1770951103943,3.99900573,79.016,78.96,11.4077]
[1770951104237,3.99900573,79.016,78.912,3.98528812]
[1770951104444,3.99900573,79.016,78.921,3.98528812]
[1770951104646,3.99900573,79.011,78.951,3.98528812]
[1770951105442,3.99900573,78.988,78.933,15.39688812]
[1770951105839,3.99900573,78.979,78.925,11.4128]
[1770951106333,3.99900573,78.979,78.9,8.82437312]
[1770951106334,3.99900573,78.979,78.926,3.98528812]
[1770951108246,15.40550573,78.969,78.92,8.82437312]
[1770951108448,3.99900573,78.968,78.914,11.4144]
[1770951108846,3.99900573,78.968,78.922,11.4133]
[1770951110145,3.99900573,78.968,78.91,3.98528812]
[1770951111750,3.99900573,78.968,78.917,11.4139]
[1770951111947,3.99900573,78.968,78.917,3.98528812]
[1770951112146,3.99900573,78.984,78.921,3.98528812]
[1770951112354,11.4029,78.995,78.945,15.39528812]
[1770951113044,3.99900573,78.989,78.945,3.98528812]
[1770951113245,3.99900573,78.989,78.936,11.4111]
[1770951113646,3.99900573,78.987,78.92,8.82437312]
[1770951113839,3.99900573,78.987,78.912,3.98528812]
[1770951114753,3.99900573,78.973,78.924,11.4129]
[1770951115343,3.99900573,78.973,78.901,3.98528812]
[1770951116052,3.99900573,78.953,78.901,11.4163]
[1770951116456,3.99900573,78.953,78.885,3.98528812]
[1770951116660,3.99900573,78.932,78.881,11.4192]
[1770951117252,3.99900573,78.932,78.86,8.82437312]
[1770951117253,3.99900573,78.949,78.886,3.98528812]
[1770951118151,11.411,78.939,78.886,3.98528812]
[1770951118555,3.99900573,78.949,78.886,3.98528812]
[1770951119851,15.40990573,78.939,78.889,11.418]
[1770951120054,3.99900573,78.964,78.89,3.98528812]
[1770951120356,3.99900573,78.957,78.902,11.4161]
[1770951121059,11.4073,78.964,78.913,4.00970466]
[1770951121553,11.4073,78.964,78.89,8.80941273]
[1770951121554,4.16768222,78.956,78.908,11.4152]
[1770951121954,4.16768222,78.956,78.897,4.00970466]
[1770951122352,4.16768222,78.973,78.922,11.4132]
[1770951122656,4.16768222,78.989,78.931,4.00970466]
[1770951122849,4.16768222,78.989,78.93,8.80941273]
[1770951122850,15.56918222,79.004,78.952,11.4089]
[1770951123250,4.16768222,79.004,78.953,4.00970466]
[1770951123453,4.16768222,79.004,78.935,4.00970466]
[1770951124850,4.16768222,78.993,78.935,4.00970466]
[1770951125556,4.16768222,78.978,78.926,11.4127]
[1770951126860,4.16768222,78.996,78.941,11.4105]
[1770951127054,4.16768222,78.996,78.91,8.80941273]
[1770951127055,4.16768222,78.996,78.942,4.00970466]
[1770951127459,4.16768222,78.996,78.946,4.00970466]
[1770951127858,11.4028,78.995,78.946,4.00970466]
[1770951128058,15.57048222,78.995,78.946,4.00970466]
[1770951130957,4.16768222,78.995,78.952,11.4089]
[1770951131163,4.16768222,78.995,78.946,4.00970466]
[1770951131461,4.16768222,78.995,78.919,15.45057664]
[1770951131660,4.16768222,78.995,78.92,4.00970466]
[1770951131963,4.16768222,78.995,78.931,4.00970466]
[1770951132463,4.16768222,78.991,78.931,4.00970466]
[1770951133363,4.16768222,78.988,78.943,11.4102]
[1770951135255,4.16768222,78.988,78.931,4.00970466]
[1770951136769,4.16768222,78.988,78.943,11.4102]
[1770951137767,15.57158222,78.987,78.943,11.4102]
[1770951137963,4.16768222,78.986,78.912,4.00970466]
[1770951138565,15.56948222,79.002,78.943,4.00970466]
[1770951138961,11.4026,78.996,78.949,11.4093]
[1770951140172,11.4026,78.996,78.95,4.00970466]
[1770951140961,4.16768222,79.001,78.953,11.4087]
[1770951141671,4.16768222,79.001,78.953,15.41840466]
[1770951144366,4.16768222,78.999,78.953,15.41840466]
[1770951145171,4.16768222,78.999,78.954,4.00970466]
[1770951148460,4.16768222,78.994,78.954,4.00970466]
[1770951149073,4.16768222,78.994,78.953,11.4087]
[1770951150468,4.16768222,78.994,78.927,3.90209851]
[1770951150975,4.16768222,78.994,78.91,8.80941273]
[1770951150976,4.16768222,78.994,78.931,3.90209851]
[1770951151776,4.16768222,78.994,78.953,11.4088]
[1770951160091,11.4017,79.003,78.954,4.1856509]
[1770951160488,15.53297871,79.003,78.954,4.1856509]
[1770951160687,4.13127871,79.002,78.954,4.1856509]
[1770951161282,11.83190845,79.029,78.93,8.80941273]
[1770951161283,11.83190845,79.031,78.958,4.1856509]
[1770951161487,4.13127871,79.035,78.971,4.1856509]
[1770951162889,4.13127871,79.035,78.99,11.4033]
[1770951164991,4.13127871,79.029,78.982,11.4045]
[1770951165890,11.83190845,79.071,79.021,4.1856509]
[1770951166191,4.13127871,79.123,78.979,38.12]
[1770951166192,7.76722131,79.105,79.06,3.28148569]
[1770951166484,179.5572079,79.172,79.022,101.06]
[1770951166485,7.76722131,79.129,79.026,101.06]
[1770951166793,7.76722131,79.119,79.066,11.3925]
[1770951166990,7.76722131,79.119,79.03,8.77381742]
[1770951167289,7.76722131,79.119,79.074,11.3913]
[1770951167597,7.74058131,79.171,79.075,101.06]
[1770951167885,7.74058131,79.171,79.07,8.77381742]
[1770951167886,7.74058131,79.168,79.105,11.3868]
[1770951168089,7.74058131,79.168,79.074,101.06]
[1770951168293,7.74058131,79.147,79.04,8.77381742]
[1770951168495,7.74058131,79.103,79.02,8.77381742]
[1770951168786,7.74058131,79.103,79.016,101.04]
[1770951169088,7.74058131,79.112,79.013,263.93986256]
[1770951169280,7.74058131,79.112,79.014,154.06]
[1770951169485,7.58618742,79.11,79.045,11.3955]
[1770951170188,7.58618742,79.096,79.034,11.3971]
[1770951170792,7.58618742,79.096,79.045,11.3955]
[1770951170986,7.58618742,79.111,79.045,11.3955]
[1770951171792,7.58618742,79.111,79.055,11.394]
[1770951172887,7.61073572,79.109,79.043,11.3958]
[1770951174894,7.5846605,79.107,79.043,11.3958]
[1770951175101,7.5846605,79.107,79.031,11.3975]
[1770951175984,7.58572798,79.102,79.031,11.3975]
[1770951176590,7.58572798,79.102,79.041,11.396]
[1770951177598,7.58744872,79.099,79.041,11.396]
[1770951180695,7.60737539,79.096,79.041,11.396]
[1770951181193,7.60737539,79.096,79.025,154.76]
[1770951181194,7.60737539,79.096,79.05,11.3947]
[1770951181395,7.60737539,79.096,79.025,154.76]
[1770951182198,7.59393392,79.093,79.013,263.93986256]
[1770951182502,7.59393392,79.093,79.014,154.96]
[1770951183098,7.59393392,79.093,79.013,263.93986256]
[1770951183305,7.59393392,79.093,79.014,155.24]
[1770951183504,7.59393392,79.093,79.039,11.3964]
[1770951184004,7.56691522,79.089,79.013,263.93986256]
[1770951184506,7.56691522,79.089,79.002,155.34]
[1770951184802,7.56691522,79.078,79.014,11.4]
[1770951185697,11.3912,79.076,79.014,11.4]
[1770951185903,7.56762637,79.075,79.014,11.4]
[1770951188899,7.56762637,79.075,79.002,155.34]
[1770951189104,7.56762637,79.075,79.021,11.3989]
[1770951191013,7.56762637,79.075,79.029,11.3978]
[1770951195918,18.93169804,79.073,79.029,11.3978]
[1770951196217,7.54009804,79.072,79.029,11.3978]
[1770951196918,7.54009804,79.072,79.021,11.3989]
[1770951197219,7.54009804,79.07,79.021,11.3989]
[1770951197517,7.54009804,79.07,78.98,8.77960611]
[1770951198517,7.54239199,79.054,79.003,11.4015]
[1770951199817,7.52971687,79.052,79.003,11.4015]
[1770951200015,7.52971687,79.052,78.993,11.403]
[1770951201716,7.57487511,79.04,78.993,11.403]
[1770951202418,7.57487511,79.07,78.98,8.77960611]
[1770951202620,7.57487511,79.07,79.0,8.77960611]
[1770951204113,177.0639,79.135,78.981,154.3]
[1770951204114,7.59230032,79.14,79.025,177.3092]
[1770951204317,7.59230032,79.189,79.1,8.77960611]
[1770951204518,176.7867,79.259,79.051,531.7527]
[1770951204519,11.3671,79.244,79.18,11.3761]
[1770951204825,8.77960611,79.25,79.165,0.84432173]
[1770951205023,8.77960611,79.23,79.165,0.84432173]
[1770951205224,8.77960611,79.25,79.15,8.77960611]
[1770951205225,146.38,79.236,79.15,8.77960611]
[1770951205531,8.77960611,79.22,79.151,0.68754492]
[1770951206225,11.3706,79.219,79.151,0.68754492]
[1770951206623,4.07303345,79.218,79.151,0.68754492]
[1770951207024,4.07303345,79.215,79.151,0.68754492]
[1770951207316,4.07303345,79.215,79.095,38.12]
[1770951207317,4.07303345,79.285,79.181,0.92133443]
[1770951207518,4.07303345,79.259,79.181,0.92133443]
[1770951207723,4.07303345,79.25,79.181,0.92133443]
[1770951208323,100.98,79.258,79.16,8.77960611]
[1770951208324,4.07303345,79.239,79.163,0.92133443]
[1770951208516,4.07303345,79.219,79.147,0.92133443]
[1770951209022,4.07303345,79.199,79.13,0.92133443]
[1770951210425,4.07303345,79.199,79.12,8.77960611]
[1770951210426,4.0346574,79.217,79.145,0.86224022]
[1770951210920,4.0346574,79.234,79.162,0.86224022]
[1770951211120,4.0346574,79.234,79.143,0.86224022]
[1770951211326,4.0346574,79.234,79.161,0.81340612]
[1770951211921,4.0346574,79.219,79.141,0.81340612]
[1770951212127,4.0346574,79.199,79.141,0.81340612]
[1770951212731,4.0346574,79.199,79.124,11.3841]
[1770951213127,4.0346574,79.199,79.124,12.19750612]
[1770951213327,4.0346574,79.199,79.125,0.63741571]
[1770951213524,4.0346574,79.199,79.12,8.77960611]
[1770951213525,4.0346574,79.199,79.134,0.63824708]
[1770951213723,3.98714831,79.219,79.141,0.63824708]
[1770951214228,3.98714831,79.219,79.148,0.63824708]
[1770951214528,8.77960611,79.24,79.148,0.63824708]
[1770951214723,3.98714831,79.237,79.228,5.365e-05]
[1770951215031,3.98714831,79.237,79.167,11.3779]
[1770951215528,3.98714831,79.237,79.168,0.71872571]
[1770951216324,3.98714831,79.235,79.168,0.71872571]
[1770951216721,3.98714831,79.235,79.17,11.3775]
[1770951216930,3.98714831,79.235,79.171,0.71872571]
[1770951217524,3.98714831,79.235,79.172,0.60347516]
[1770951217926,3.98714831,79.253,79.174,0.60347516]
[1770951218129,3.98714831,79.253,79.161,38.12]
[1770951218130,3.98714831,79.253,79.181,0.60347516]
[1770951219125,3.98714831,79.249,79.169,0.60347516]
[1770951219525,8.77960611,79.25,79.169,0.60347516]
[1770951219526,3.98714831,79.247,79.169,0.60347516]
[1770951220539,3.98714831,79.227,79.152,11.86352861]
[1770951220737,3.98714831,79.209,79.135,0.48352861]
[1770951221534,3.98714831,79.209,79.137,0.62342907]
[1770951222840,3.98714831,79.207,79.145,11.3811]
[1770951224640,3.98714831,79.204,79.145,11.3811]
[1770951230041,3.98714831,79.204,79.148,0.49852015]
[1770951230744,3.98714831,79.202,79.148,0.49852015]
[1770951231345,3.98714831,79.19,79.133,11.3828]
[1770951232453,3.98714831,79.188,79.13,0.48506912]
[1770951233247,11.377,79.174,79.123,0.50135664]
[1770951233552,3.98714831,79.173,79.123,0.50135664]
[1770951233755,3.98714831,79.173,79.107,157.6]
[1770951233952,11.3789,79.161,79.109,11.3863]
[1770951235344,11.3795,79.157,79.106,0.50135664]
[1770951235553,3.98714831,79.16,79.106,0.50135664]
[1770951236857,3.98714831,79.16,79.107,11.3865]
[1770951237255,3.98714831,79.16,79.098,11.3878]
[1770951237256,3.98714831,79.147,79.098,11.3878]
[1770951238153,3.98714831,79.144,79.093,11.3886]
[1770951238657,3.98714831,79.144,79.094,0.46761335]
[1770951239464,3.98714831,79.186,79.115,0.48167326]
[1770951239756,124.7,79.196,79.115,0.48167326]
[1770951239951,8.77960611,79.19,79.115,0.48167326]
[1770951240754,11.3768,79.176,79.122,11.3844]
[1770951241754,4.08821128,79.175,79.122,11.3844]
[1770951241951,4.08821128,79.171,79.122,11.3844]
[1770951242149,4.08821128,79.169,79.092,3.8974092]
[1770951242658,4.08821128,79.154,79.092,3.8974092]
[1770951243753,4.08821128,79.142,79.092,3.8974092]
[1770951244258,4.08821128,79.169,79.092,3.8974092]
[1770951245349,4.08821128,79.161,79.108,11.3864]
[1770951245556,4.08821128,79.161,79.092,3.8974092]
[1770951246462,8.76509666,79.17,79.081,3.8974092]
[1770951246463,4.08821128,79.146,79.081,3.8974092]
[1770951246759,20.33626206,79.2,79.08,8.76509666]
[1770951246760,4.08821128,79.189,79.101,3.8974092]
[1770951246954,4.08821128,79.178,79.118,3.8974092]
[1770951247157,4.08821128,79.178,79.103,3.8974092]
[1770951247358,176.8697,79.222,79.08,109.62509666]
[1770951247359,4.08821128,79.204,79.121,3.8974092]
[1770951247561,4.08821128,79.189,79.091,3.8974092]
[1770951247765,4.08821128,79.187,79.091,3.8974092]
[1770951248063,15.46871128,79.15,79.104,11.387]
[1770951248565,4.08821128,79.15,79.111,11.3859]
[1770951248758,4.08821128,79.169,79.111,11.3859]
[1770951249358,4.08821128,79.157,79.102,11.3872]
[1770951249861,4.08821128,79.154,79.11,11.3862]
[1770951251566,4.08821128,79.153,79.091,3.8974092]
[1770951252253,4.08821128,79.151,79.102,11.3872]
[1770951252661,4.08821128,79.151,79.091,3.8974092]
[1770951252662,4.08821128,79.151,79.103,3.8974092]
[1770951253857,4.08821128,79.151,79.112,11.3858]
[1770951254963,11.3782,79.166,79.112,11.3858]
[1770951255265,4.08821128,79.165,79.112,11.3858]
[1770951256259,4.08821128,79.163,79.112,11.3858]
[1770951256661,4.08821128,79.163,79.119,11.3848]
[1770951256857,100.86,79.165,79.103,3.8974092]
[1770951256858,4.08821128,79.161,79.103,3.8974092]
[1770951257361,4.08821128,79.161,79.112,3.8974092]
[1770951257564,4.08821128,79.189,79.112,3.8974092]
[1770951257763,104.94821128,79.188,79.112,3.8974092]
[1770951257957,4.08821128,79.187,79.125,11.3839]
[1770951258163,11.3765,79.178,79.125,11.3839]
[1770951258360,4.08821128,79.217,79.131,3.8974092]
[1770951258866,4.08821128,79.2,79.131,3.8974092]
[1770951259167,4.08821128,79.199,79.131,3.8974092]
[1770951259869,4.08821128,79.198,79.144,11.3812]
[1770951260857,15.46271128,79.192,79.144,11.3812]
[1770951261762,4.08821128,79.191,79.144,11.3812]
[1770951263765,11.3749,79.189,79.136,3.8974092]
[1770951263967,4.08821128,79.191,79.136,3.8974092]
[1770951264764,4.08821128,79.191,79.147,11.3808]
[1770951271775,4.08821128,79.191,79.147,15.33422222]
[1770951274573,4.08821128,79.191,79.148,4.09882465]
[1770951275167,37.93,79.228,79.13,8.76509666]
[1770951275168,15.22878575,79.207,79.154,4.09882465]
[1770951275780,3.85638575,79.204,79.157,15.47822465]
[1770951275976,3.85638575,79.223,79.158,4.09882465]
[1770951276278,3.85638575,79.249,79.158,4.09882465]
[1770951276472,3.85638575,79.241,79.192,11.3744]
[1770951277478,139.24,79.248,79.186,4.09882465]
[1770951277479,3.85638575,79.238,79.186,4.09882465]
[1770951277675,3.85638575,79.238,79.165,4.09882465]
[1770951278381,8.76509666,79.25,79.165,4.09882465]
[1770951278382,3.85638575,79.236,79.165,4.09882465]
[1770951278882,3.85638575,79.225,79.176,11.3767]
[1770951279277,3.85638575,79.225,79.176,15.47552465]
[1770951280078,3.85638575,79.225,79.186,11.3752]
[1770951280276,11.3677,79.239,79.187,4.09882465]
[1770951281381,109.58509666,79.25,79.187,4.09882465]
[1770951281382,15.22368575,79.242,79.187,4.09882465]
[1770951281583,3.85638575,79.24,79.187,4.09882465]
[1770951282579,138.42,79.241,79.144,4.02480291]
[1770951282580,3.85638575,79.229,79.144,4.02480291]
[1770951282780,135.08,79.228,79.161,4.02480291]
[1770951283182,3.85638575,79.229,79.161,4.02480291]
[1770951283585,3.85638575,79.229,79.181,4.05920737]
[1770951284086,3.85638575,79.227,79.161,4.05920737]
[1770951284879,3.85638575,79.225,79.172,11.3772]
[1770951285079,3.85638575,79.225,79.172,15.43640737]
[1770951286587,8.76509666,79.25,79.12,60.6993]
[1770951286588,3.85638575,79.219,79.162,11.3786]
[1770951287573,3.85638575,79.219,79.158,4.08102395]
[1770951287779,3.85638575,79.206,79.144,4.08238721]
[1770951288186,3.85638575,79.206,79.157,15.46168721]
[1770951288383,3.85638575,79.206,79.158,4.08238721]
[1770951289483,3.85638575,79.206,79.163,11.3785]
[1770951289684,3.85638575,79.206,79.158,4.08238721]
[1770951290488,117.84,79.213,79.16,4.01221935]
[1770951290888,117.84,79.213,79.16,7.27920226]
[1770951291088,117.84,79.213,79.161,4.01221935]
[1770951291486,117.84,79.213,79.12,22.7693]
[1770951291487,134.29638575,79.219,79.17,3.26698291]
[1770951291685,3.85638575,79.218,79.17,7.27037155]
[1770951291890,3.85638575,79.218,79.17,4.00338864]
[1770951292887,3.85638575,79.218,79.18,11.3761]
[1770951293196,3.85638575,79.218,79.17,4.00338864]
[1770951293386,3.85638575,79.209,79.162,11.3786]
[1770951294592,3.85638575,79.199,79.156,3.97961573]
[1770951295796,3.85638575,79.199,79.158,11.3792]
[1770951297794,3.85638575,79.199,79.156,3.97961573]
[1770951297996,3.85638575,79.189,79.139,3.97940064]
[1770951298695,3.85638575,79.189,79.142,11.3814]
[1770951298906,3.26698291,79.19,79.143,3.97940064]
[1770951299493,3.26698291,79.2,79.164,3.98948365]
[1770951299697,3.85638575,79.199,79.151,3.98948365]
[1770951299896,3.85638575,79.199,79.156,11.3795]
[1770951301400,3.26698291,79.19,79.151,3.98948365]
[1770951302692,3.26698291,79.18,79.156,11.3794]
[1770951302899,3.85623431,79.226,79.171,3.99847256]
[1770951303096,3.85623431,79.226,79.181,3.99847256]
[1770951303499,3.85623431,79.219,79.166,11.3781]
[1770951303703,3.26698291,79.2,79.164,3.98356581]
[1770951303905,3.26698291,79.21,79.164,3.98356581]
[1770951304102,3.26698291,79.21,79.165,11.3781]
[1770951304400,3.26698291,79.21,79.166,3.98356581]
[1770951304902,3.26795563,79.2,79.166,3.98356581]
[1770951305104,3.26795563,79.19,79.141,3.98356581]
[1770951305893,3.26795563,79.2,79.159,4.02442758]
[1770951306098,3.26795563,79.21,79.159,4.02442758]
[1770951306299,3.26795563,79.19,79.141,4.02442758]
[1770951306494,3.26795563,79.19,79.153,11.3799]
[1770951306697,7.12418994,79.19,79.141,4.02442758]
[1770951307402,7.12418994,79.19,79.152,15.38880923]
[1770951307709,3.26795563,79.19,79.153,4.00880923]
[1770951309510,3.26795563,79.18,79.14,4.00638799]
[1770951309905,3.85623431,79.169,79.126,4.00638799]
[1770951310098,3.26795563,79.16,79.126,4.00638799]
[1770951310505,3.26795563,79.18,79.126,4.00638799]
[1770951310906,3.26795563,79.18,79.131,4.00638799]
[1770951311713,3.26795563,79.18,79.137,11.3822]
[1770951312214,3.26795563,79.17,79.137,11.3822]
[1770951312511,3.85623431,79.179,79.138,4.01090866]
[1770951313917,3.26795563,79.17,79.138,4.01090866]
[1770951315311,3.85623431,79.179,79.139,11.3819]
[1770951316308,3.85623431,79.179,79.138,4.01090866]
[1770951316915,7.12418994,79.17,79.128,11.3835]
[1770951317115,3.85623431,79.169,79.128,11.3835]
[1770951317418,3.26795563,79.16,79.128,11.3835]
[1770951317616,3.85623431,79.169,79.128,11.3835]
[1770951319115,3.85623431,79.169,79.128,15.36553157]
[1770951319316,3.26795563,79.18,79.138,11.3821]
[1770951319917,100.82,79.196,79.13,3.26795563]
[1770951319918,3.85623431,79.196,79.147,3.98247921]
[1770951320120,3.26795563,79.19,79.147,3.98247921]
[1770951320317,3.85623431,79.196,79.147,3.98247921]
[1770951321024,3.26795563,79.19,79.147,3.98247921]
[1770951321427,3.85623431,79.196,79.147,3.98247921]
[1770951321717,3.26795563,79.2,79.157,3.89238604]
[1770951322020,7.12418994,79.2,79.157,3.89238604]
[1770951323420,3.85623431,79.196,79.147,11.3808]
[1770951323621,3.85623431,79.196,79.148,3.91188526]
[1770951324022,3.85623431,79.196,79.16,11.3789]
[1770951325224,3.26795563,79.2,79.164,11.3783]
[1770951325424,3.85623431,79.209,79.165,3.91379575]
[1770951326323,3.85623431,79.209,79.173,11.3771]
[1770951328225,7.12418994,79.2,79.163,11.3785]
[1770951329732,7.12418994,79.2,79.156,3.92065111]
[1770951330735,3.85623431,79.2,79.156,3.92065111]
[1770951331336,3.85623431,79.2,79.157,11.3794]
[1770951331636,3.85623431,79.2,79.157,15.19884179]
[1770951331831,3.85623431,79.2,79.127,100.82]
[1770951331832,4.07487151,79.197,79.13,3.81944179]
[1770951332130,4.07487151,79.189,79.14,3.26795563]
[1770951332337,4.07487151,79.189,79.141,3.81944179]
[1770951332723,4.07487151,79.189,79.146,11.3809]
[1770951333335,3.26795563,79.18,79.141,3.81944179]
[1770951333531,7.33857023,79.18,79.141,3.81944179]
[1770951333733,7.33857023,79.18,79.128,3.91373627]
[1770951333734,4.0706146,79.179,79.128,3.91373627]
[1770951334633,4.0706146,79.169,79.128,3.91373627]
[1770951335438,4.0706146,79.169,79.117,11.3851]
[1770951335634,4.0706146,79.159,79.117,11.3851]
[1770951337240,4.0706146,79.149,79.109,11.3862]
[1770951339937,3.26795563,79.14,79.1,3.91373627]
[1770951340137,4.0706146,79.149,79.1,3.91373627]
[1770951340342,4.0706146,79.149,79.109,11.3862]
[1770951341748,4.0706146,79.182,79.131,3.91373627]
[1770951342747,3.26795563,79.18,79.138,11.382]
[1770951343344,4.0706146,79.169,79.12,3.26795563]
[1770951343745,4.0706146,79.169,79.129,11.3834]
[1770951344139,11.378,79.168,79.119,11.3848]
[1770951344343,3.26795563,79.16,79.119,11.3848]
[1770951345954,4.0706146,79.159,79.116,3.91373627]
[1770951346146,4.0706146,79.159,79.11,14.65415563]
[1770951346448,3.26795563,79.15,79.103,3.91373627]
[1770951347752,4.0706146,79.159,79.11,18.5677919]
[1770951347952,4.0706146,79.159,79.111,3.91373627]
[1770951349847,3.26795563,79.15,79.111,3.91373627]
[1770951351449,4.0706146,79.157,79.111,3.91373627]
[1770951353858,4.0706146,79.157,79.113,11.3857]
[1770951354056,4.0706146,79.187,79.131,3.91373627]
[1770951354259,4.0706146,79.187,79.141,11.3816]
[1770951354857,4.0706146,79.187,79.15,11.3804]
[1770951359252,11.3732,79.201,79.107,15.47781771]
[1770951359253,11.3713,79.214,79.16,3.26795563]
[1770951359458,3.26795563,79.21,79.161,3.91373627]
[1770951359665,4.0706146,79.209,79.161,3.91373627]
[1770951360765,4.0706146,79.209,79.169,11.3777]
[1770951361467,3.26795563,79.2,79.169,11.3777]
[1770951362967,4.0706146,79.209,79.169,11.3777]
[1770951363362,4.03325856,79.198,79.149,4.04846887]
[1770951363568,3.26795563,79.2,79.151,4.04846887]
[1770951364065,14.63985563,79.21,79.164,4.04846887]
[1770951364469,3.26795563,79.21,79.164,4.04846887]
[1770951364772,4.03325856,79.209,79.166,4.04846887]
[1770951366468,3.26795073,79.19,79.156,11.3795]
[1770951366668,4.03325856,79.199,79.157,4.1211418]
[1770951366970,4.03325856,79.199,79.164,11.3784]
[1770951367174,3.26795073,79.21,79.165,4.1211418]
[1770951367678,4.03325856,79.212,79.176,11.3766]
[1770951368061,3.26795073,79.22,79.179,11.3763]
[1770951368267,3.26795073,79.22,79.129,177.075]
[1770951368268,4.03325856,79.225,79.181,4.10850339]
[1770951368769,4.03325856,79.225,79.185,11.3753]
[1770951371062,4.03325856,79.238,79.189,3.93288177]
[1770951371674,4.03325856,79.238,79.19,3.26795073]
[1770951371871,4.03325856,79.238,79.195,11.3739]
[1770951372775,4.03325856,79.238,79.144,15.47781771]
[1770951372776,3.26795073,79.25,79.206,3.91353217]
[1770951373376,3.26795073,79.24,79.2,11.3732]
[1770951373877,192.15750417,79.274,79.161,22.7575]
[1770951373878,4.03325856,79.259,79.21,3.26795073]
[1770951374074,7.30120929,79.24,79.191,3.98538709]
[1770951374274,3.26795073,79.23,79.191,3.98538709]
[1770951375272,100.82,79.253,79.178,3.98538709]
[1770951375273,3.26795073,79.22,79.178,3.98538709]
[1770951376876,3.26795073,79.22,79.179,11.3763]
[1770951377174,3.26795073,79.22,79.149,100.8]
[1770951377175,4.03325856,79.257,79.211,3.94662792]
[1770951377376,4.03325856,79.257,79.155,177.0166]
[1770951377377,3.26795073,79.24,79.197,3.81137424]
[1770951377574,4.03325856,79.249,79.197,3.81137424]
[1770951377777,4.03325856,79.249,79.213,11.3713]
[1770951377983,3.26795073,79.26,79.213,11.3713]
[1770951378577,4.03325856,79.264,79.223,3.81137424]
[1770951379372,3.26795073,79.27,79.225,11.3696]
[1770951379574,4.03325856,79.279,79.231,3.77377504]
[1770951382983,3.26795073,79.27,79.231,3.77377504]
[1770951383368,4.03325856,79.279,79.239,11.3675]
[1770951386974,4.03325856,79.279,79.231,3.77377504]
[1770951387181,3.26795073,79.27,79.231,15.14257504]
[1770951390578,4.03325856,79.279,79.231,15.14257504]
[1770951393787,4.03325856,79.279,79.234,3.69917412]
[1770951395480,4.03325856,79.279,79.221,3.70026158]
[1770951395680,4.03437845,79.259,79.211,3.70026158]